fUSD/lending_fUSD_20250804
["ID","MTS","AMOUNT","RATE_DAILY","PERIOD"]
[377191089,1754278249020,-151.0,0.00046052,14]
[377191090,1754278249029,-151.0,0.00046052,14]
[377191091,1754278249038,-151.0,0.00046052,14]
[377191092,1754278249048,-151.0,0.00046056,14]
[377191093,1754278249058,-151.0,0.00046056,14]
[377191094,1754278249067,-153.03176,0.00046061,14]
[377191095,1754278249077,-151.67715,0.00046061,14]
[377191096,1754278249087,-151.0,0.00046061,2]
[377191097,1754278249096,-151.373839,0.00046061,2]
[377191098,1754278249105,-151.0,0.00046061,14]
[377191099,1754278249115,-151.0,0.00046061,14]
[377191100,1754278249124,-151.0,0.00046061,14]
[377191101,1754278249133,-151.0,0.00046061,14]
[377191102,1754278249143,-151.0,0.00046061,14]
[377191103,1754278249153,-151.0,0.00046061,14]
[377191104,1754278249163,-151.0,0.00046061,14]
[377191105,1754278249172,-153.059686,0.00046061,14]
[377191106,1754278249182,-151.0,0.00046061,14]
[377191107,1754278249191,-151.0,0.00046061,14]
[377191108,1754278249200,-151.0,0.00046061,14]
[377191109,1754278249210,-151.0,0.00046061,14]
[377191110,1754278249219,-194.76452,0.00046061,14]
[377191111,1754278249229,-151.0,0.00046061,14]
[377191112,1754278249240,-247.332141,0.00046061,14]
[377191113,1754278249249,-151.0,0.00046061,14]
[377191114,1754278249260,-151.0,0.00046061,14]
[377191115,1754278249269,-151.0,0.00046061,14]
[377191116,1754278249279,-151.0,0.00046061,14]
[377191117,1754278249288,-151.0,0.00046061,14]
[377191118,1754278249297,-151.0,0.00046061,14]
[377191119,1754278249307,-151.0,0.00046061,14]
[377191120,1754278249316,-151.0,0.00046061,14]
[377191121,1754278249326,-151.0,0.00046061,14]
[377191122,1754278249335,-151.0,0.00046061,14]
[377191123,1754278249345,-151.0,0.00046061,14]
[377191124,1754278249354,-151.0,0.00046061,14]
[377191125,1754278249363,-151.0,0.00046061,14]
[377191126,1754278249372,-151.0,0.00046061,14]
[377191127,1754278249382,-151.0,0.00046061,14]
[377191128,1754278249392,-151.0,0.00046061,14]
[377191129,1754278249401,-151.0,0.00046061,14]
[377191130,1754278249411,-151.0,0.00046061,14]
[377191131,1754278249421,-151.0,0.00046061,14]
[377191132,1754278249431,-151.0,0.00046061,14]
[377191133,1754278249440,-299.798976,0.00046061,14]
[377191134,1754278249450,-151.0,0.00046061,14]
[377191135,1754278249460,-151.0,0.00046061,14]
[377191136,1754278249470,-151.0,0.00046061,14]
[377191137,1754278249479,-151.0,0.00046061,14]
[377191138,1754278249490,-151.0,0.00046061,14]
[377191139,1754278249500,-151.0,0.00046061,14]
[377191140,1754278249509,-151.0,0.00046061,14]
[377191141,1754278249519,-151.0,0.00046061,14]
[377191142,1754278249528,-151.0,0.00046061,14]
[377191143,1754278249538,-151.0,0.00046061,14]
[377191144,1754278249548,-151.0,0.00046061,14]
[377191145,1754278249557,-263.291907,0.00046061,14]
[377191146,1754278249567,-151.0,0.00046061,14]
[377191147,1754278249577,-151.0,0.00046061,14]
[377191148,1754278249587,-151.0,0.00046061,14]
[377191149,1754278249596,-151.0,0.00046061,14]
[377191150,1754278249605,-151.0,0.00046061,14]
[377191151,1754278249616,-174.628696,0.00046061,14]
[377191152,1754278249627,-151.0,0.00046061,14]
[377191153,1754278249636,-151.0,0.00046061,14]
[377191154,1754278249646,-151.0,0.00046061,14]
[377191155,1754278249655,-151.0,0.00046061,14]
[377191156,1754278249664,-151.0,0.00046061,14]
[377191157,1754278249673,-151.0,0.00046061,14]
[377191158,1754278249682,-151.0,0.00046061,14]
[377191159,1754278249691,-151.0,0.00046061,14]
[377191160,1754278249700,-151.0,0.00046061,14]
[377191161,1754278249710,-151.0,0.00046061,14]
[377191162,1754278249719,-158.350387,0.00046061,14]
[377191163,1754278249728,-151.0,0.00046061,14]
[377191164,1754278249738,-151.0,0.00046061,14]
[377191165,1754278249747,-151.0,0.00046061,14]
[377191166,1754278249756,-161.047084,0.00046061,14]
[377191167,1754278249766,-161.047084,0.00046061,14]
[377191168,1754278249775,-151.0,0.00046061,14]
[377191169,1754278249784,-151.0,0.00046061,14]
[377191170,1754278249793,-151.0,0.00046061,14]
[377191171,1754278249802,-226.969151,0.00046061,14]
[377191172,1754278249812,-226.969151,0.00046061,14]
[377191173,1754278249822,-151.0,0.00046061,14]
[377191174,1754278249831,-759.368077,0.00046061,14]
[377191175,1754278249842,-151.0,0.00046061,14]
[377191176,1754278249852,-151.0,0.00046061,14]
[377191177,1754278249862,-293.075366,0.00046061,14]
[377191178,1754278249872,-295.672472,0.00046061,14]
[377191179,1754278249882,-212.283583,0.00046061,14]
[377191180,1754278249892,-295.672472,0.00046061,14]
[377191181,1754278249905,-212.283583,0.00046061,14]
[377191182,1754278249915,-151.0,0.00046061,14]
[377191183,1754278249925,-235.489405,0.00046061,14]
[377191184,1754278249935,-235.489405,0.00046061,14]
[377191185,1754278249946,-286.998784,0.00046061,14]
[377191186,1754278249956,-151.0,0.00046061,14]
[377191187,1754278249967,-151.0,0.00046061,14]
[377191188,1754278249977,-879.395519,0.00046061,14]
[377191189,1754278249987,-879.395519,0.00046061,14]
[377191190,1754278249996,-177.685595,0.00046061,14]
[377191191,1754278250005,-177.685595,0.00046061,14]
[377191192,1754278250015,-151.0,0.00046061,14]
[377191193,1754278250024,-151.0,0.00046061,14]
[377191194,1754278250034,-151.0,0.00046071,14]
[377191195,1754278250044,-151.0,0.00046072,14]
[377191196,1754278250053,-151.0,0.00046072,14]
[377191197,1754278250062,-197.583181,0.00046072,14]
[377191198,1754278250072,-197.583181,0.00046072,14]
[377191199,1754278250081,-151.0,0.00046072,14]
[377191200,1754278250091,-186.242691,0.00046072,14]
[377191201,1754278250101,-186.242691,0.00046072,14]
[377191202,1754278250111,-153.292689,0.00046072,14]
[377191203,1754278250120,-151.0,0.00046072,14]
[377191204,1754278250130,-151.0,0.00046072,14]
[377191205,1754278250139,-151.0,0.00046072,14]
[377191206,1754278250149,-151.0,0.00046072,14]
[377191207,1754278250158,-151.0,0.00046072,14]
[377191208,1754278250167,-151.0,0.00046072,14]
[377191209,1754278250177,-151.0,0.00046072,14]
[377191210,1754278250187,-151.0,0.00046072,14]
[377191211,1754278250196,-151.0,0.00046072,14]
[377191212,1754278250205,-151.0,0.00046072,14]
[377191213,1754278250214,-151.0,0.00046072,14]
[377191214,1754278250223,-151.0,0.00046072,14]
[377191215,1754278250233,-151.0,0.00046072,14]
[377191216,1754278250243,-151.670486,0.00046072,14]
[377191217,1754278250252,-151.579175,0.00046072,14]
[377191218,1754278250261,-153.229771,0.00046072,14]
[377191219,1754278250271,-263.231326,0.00046072,14]
[377191220,1754278250280,-151.0,0.00046072,14]
[377191221,1754278250289,-151.0,0.00046072,14]
[377191222,1754278250298,-151.0,0.00046072,14]
[377191223,1754278250307,-295.672472,0.00046072,14]
[377191224,1754278250317,-295.672472,0.00046072,14]
[377191225,1754278250326,-235.489405,0.00046072,14]
[377191226,1754278250335,-235.489405,0.00046072,14]
[377191227,1754278250345,-607.50648958,0.00046073,10]
[377191228,1754278250354,-264.99465784,0.00046073,10]
[377191229,1754278250363,-151.0,0.00046073,14]
[377191230,1754278250372,-188.06888,0.00046073,14]
[377191231,1754278250381,-879.395519,0.00046073,14]
[377191232,1754278250391,-879.395519,0.00046073,14]
[377191233,1754278250400,-177.685595,0.00046073,14]
[377191234,1754278250409,-177.685604,0.00046073,14]
[377191235,1754278250419,-151.0,0.00046073,14]
[377191236,1754278250428,-835.47,0.00046164,30]
[377191237,1754278250437,-159.95,0.00046171,120]
[377191238,1754278250447,-151.0,0.00046212,14]
[377191239,1754278250456,-151.0,0.00046212,14]
[377191240,1754278250465,-151.0,0.00046212,14]
[377191241,1754278250474,-153.233418,0.00046212,14]
[377191242,1754278250483,-151.0,0.00046212,14]
[377191243,1754278250493,-151.0,0.00046212,14]
[377191244,1754278250503,-151.0,0.00046212,14]
[377191245,1754278250512,-151.0,0.00046212,14]
[377191246,1754278250521,-151.0,0.00046212,14]
[377191247,1754278250530,-151.0,0.00046212,14]
[377191248,1754278250540,-151.0,0.00046212,14]
[377191249,1754278250549,-151.0,0.00046212,14]
[377191250,1754278250559,-271.191673,0.00046212,14]
[377191251,1754278250687,-151.0,0.00046212,14]
[377191252,1754278250696,-151.0,0.00046212,14]
[377191253,1754278250705,-151.0,0.00046212,14]
[377191254,1754278250715,-285.780801,0.00046222,14]
[377191255,1754278250724,-461.975391,0.00046222,14]
[377191256,1754278250733,-461.975391,0.00046222,14]
[377191257,1754278250744,-251.973677,0.00046222,14]
[377191258,1754278250753,-251.973677,0.00046222,14]
[377191259,1754278250762,-151.0,0.00046233,14]
[377191260,1754278250772,-151.0,0.00046233,14]
[377191261,1754278250782,-151.0,0.00046233,14]
[377191262,1754278250792,-197.583181,0.00046233,14]
[377191263,1754278250801,-197.583181,0.00046233,14]
[377191264,1754278250810,-151.0,0.00046233,14]
[377191265,1754278250819,-186.242691,0.00046233,14]
[377191266,1754278250829,-186.242691,0.00046233,14]
[377191267,1754278250839,-151.0,0.00046233,14]
[377191268,1754278250848,-151.0,0.00046233,14]
[377191269,1754278250858,-151.87542,0.00046243,14]
[377191270,1754278250868,-2201.3,0.000463,14]
[377191271,1754278250877,-547.23,0.00046301,30]
[377191272,1754278250887,-536.97,0.00046301,30]
[377191273,1754278250902,-532.44,0.00046301,30]
[377191274,1754278250912,-501.25218818,0.00046373,10]
[377191275,1754278250922,-501.0987251,0.00046373,10]
[377191276,1754278250932,-500.78520876,0.00046373,10]
[377191277,1754278250943,-153.021222,0.00046379,14]
[377191278,1754278250954,-151.0,0.00046379,14]
[377191279,1754278250964,-197.583181,0.00046379,14]
[377191280,1754278250977,-197.583181,0.00046379,14]
[377191281,1754278250987,-194.791288,0.00046379,14]
[377191282,1754278250998,-186.242691,0.00046379,14]
[377191283,1754278251008,-186.242691,0.00046379,14]
[377191284,1754278251018,-151.0,0.00046379,14]
[377191285,1754278251028,-151.0,0.00046379,14]
[377191286,1754278251037,-151.0,0.00046379,14]
[377191287,1754278251047,-151.0,0.00046379,14]
[377191288,1754278251057,-151.0,0.00046379,14]
[377191289,1754278251066,-151.0,0.00046379,14]
[377191290,1754278251076,-151.0,0.00046379,14]
[377191291,1754278251086,-161.733733,0.00046379,14]
[377191292,1754278251095,-153.024142,0.00046379,14]
[377191293,1754278251104,-151.0,0.00046379,14]
[377191294,1754278251114,-277.257874,0.00046379,14]
[377191295,1754278251124,-151.0,0.00046379,14]
[377191296,1754278251134,-151.0,0.00046379,14]
[377191297,1754278251143,-151.0,0.00046379,14]
[377191298,1754278251153,-151.0,0.00046379,14]
[377191299,1754278251164,-153.689652,0.00046379,14]
[377191300,1754278251174,-158.464594,0.00046379,14]
[377191301,1754278251184,-151.0,0.00046379,14]
[377191302,1754278251193,-157.134854,0.00046379,14]
[377191303,1754278251203,-157.134854,0.00046379,14]
[377191304,1754278251213,-151.0,0.00046379,14]
[377191305,1754278251222,-151.0,0.00046379,14]
[377191306,1754278251232,-151.0,0.00046379,14]
[377191307,1754278251242,-161.047084,0.00046379,14]
[377191308,1754278251253,-161.047084,0.00046379,14]
[377191309,1754278251263,-151.0,0.00046379,14]
[377191310,1754278251273,-212.419685,0.00046379,14]
[377191311,1754278251282,-151.0,0.00046379,14]
[377191312,1754278251291,-151.0,0.00046379,14]
[377191313,1754278251301,-759.368077,0.00046379,14]
[377191314,1754278251310,-175.145811,0.00046379,14]
[377191315,1754278251320,-151.0,0.00046379,14]
[377191316,1754278251329,-295.672472,0.00046379,14]
[377191317,1754278251338,-212.283583,0.00046379,14]
[377191318,1754278251348,-212.283583,0.00046379,14]
[377191319,1754278251358,-295.672476,0.00046379,14]
[377191320,1754278251367,-151.0,0.00046379,14]
[377191321,1754278251377,-235.489405,0.00046379,14]
[377191322,1754278251386,-235.489402,0.00046379,14]
[377191323,1754278251396,-1151.90158851,0.00046389,30]
[377191324,1754278251405,-27516.77124094,0.00046389,30]
[377191325,1754278251414,-151.0,0.00046389,14]
[377191326,1754278251424,-265.56698,0.00046389,14]
[377191327,1754278251434,-265.56698,0.00046389,14]
[377191328,1754278251444,-231.561432,0.00046389,14]
[377191329,1754278251454,-461.975391,0.00046389,14]
[377191330,1754278251463,-461.975391,0.00046389,14]
[377191331,1754278251473,-257.618581,0.00046389,14]
[377191332,1754278251482,-151.0,0.00046389,14]
[377191333,1754278251492,-152.388089,0.00046389,14]
[377191334,1754278251502,-151.0,0.00046389,14]
[377191335,1754278251511,-263.231326,0.00046389,14]
[377191336,1754278251521,-151.0,0.00046389,14]
[377191337,1754278251530,-226.969151,0.00046389,14]
[377191338,1754278251540,-226.969151,0.00046389,14]
[377191339,1754278251550,-905.21573796,0.00046389,120]
[377191340,1754278251561,-155.47109,0.0004639,14]
[377191341,1754278251570,-265.56698,0.0004639,14]
[377191342,1754278251580,-265.56698,0.0004639,14]
[377191343,1754278251589,-265.56698,0.0004639,14]
[377191344,1754278251599,-265.56698,0.0004639,14]
[377191345,1754278251609,-231.561432,0.0004639,14]
[377191346,1754278251619,-231.561432,0.0004639,14]
[377191347,1754278251628,-251.973677,0.0004639,14]
[377191348,1754278251638,-251.973677,0.0004639,14]
[377191349,1754278251647,-151.0,0.0004639,14]
[377191350,1754278251657,-176.433134,0.0004639,14]
[377191351,1754278251666,-151.0,0.0004639,14]
[377191352,1754278251675,-151.0,0.0004639,14]
[377191353,1754278251685,-151.0,0.0004639,14]
[377191354,1754278251695,-151.0,0.0004639,14]
[377191355,1754278251704,-151.0,0.0004639,14]
[377191356,1754278251713,-287.61899177,0.00046399,2]
[377191357,1754278251723,-431.42848765,0.00046399,2]
[377191358,1754278251733,-162.44807149,0.00046399,2]
[377191359,1754278251743,-22422.04224559,0.000464,31]
[377191360,1754278251753,-265.56698,0.000464,14]
[377191361,1754278251762,-265.56698,0.000464,14]
[377191362,1754278251772,-321.09836,0.000464,14]
[377191363,1754278251781,-231.561432,0.000464,14]
[377191364,1754278251792,-151.0,0.000464,14]
[377191365,1754278251801,-151.0,0.000464,14]
[377191366,1754278251811,-197.583181,0.000464,14]
[377191367,1754278251820,-197.583181,0.000464,14]
[377191368,1754278251830,-186.242691,0.000464,14]
[377191369,1754278251839,-186.242691,0.000464,14]
[377191370,1754278251849,-151.0,0.000464,14]
[377191371,1754278251858,-151.0,0.000464,14]
[377191372,1754278251868,-151.0,0.000464,14]
[377191373,1754278251877,-151.0,0.000464,14]
[377191374,1754278251887,-151.0,0.000464,14]
[377191375,1754278251900,-151.0,0.000464,14]
[377191376,1754278251912,-151.0,0.000464,14]
[377191377,1754278251921,-157.134854,0.000464,14]
[377191378,1754278251931,-157.134854,0.000464,14]
[377191379,1754278251940,-151.0,0.000464,14]
[377191380,1754278251952,-151.0,0.000464,14]
[377191381,1754278251962,-161.047084,0.000464,14]
[377191382,1754278251973,-161.047084,0.000464,14]
[377191383,1754278251983,-151.0,0.000464,14]
[377191384,1754278251995,-151.0,0.000464,14]
[377191385,1754278252004,-759.368077,0.000464,14]
[377191386,1754278252014,-759.368077,0.000464,14]
[377191387,1754278252024,-212.283583,0.000464,14]
[377191388,1754278252033,-212.283583,0.000464,14]
[377191389,1754278252042,-151.0,0.000464,14]
[377191390,1754278252052,-188.71103143,0.0004643,15]
[377191391,1754278252062,-151.0,0.00046575,120]
[377191392,1754278252071,-1000.0,0.00046712,2]
[377191393,1754278252082,-1313.72112197,0.000468,120]
[377191394,1754278252092,-363.86271134,0.000468,120]
[377191395,1754278252102,-1156.0,0.000468,7]
[377191396,1754278252122,-226.82,0.000469,30]
[377191397,1754278252133,-1007.0,0.000469,7]
[377191398,1754278252143,-515.0,0.00046912,25]
[377191399,1754278252153,-4000.0,0.0004699,8]
[377191400,1754278252162,-461.975391,0.00047029,14]
[377191401,1754278252173,-461.975391,0.00047029,14]
[377191402,1754278252184,-263.231326,0.00047029,14]
[377191403,1754278252194,-151.0,0.00047029,14]
[377191404,1754278252204,-531.28,0.00047091,120]
[377191405,1754278252214,-2201.3,0.000471,14]
[377191406,1754278252224,-188.71103143,0.00047195,15]
[377191407,1754278252234,-500.0,0.00047402,120]
[377191408,1754278252245,-252.856498,0.00047461,14]
[377191409,1754278252255,-151.0,0.00047461,14]
[377191410,1754278252264,-150.0,0.00047685,7]
[377191411,1754278252274,-841.41768095,0.00047702,2]
[377191412,1754278252284,-150.0,0.00047716,120]
[377191413,1754278252293,-321.09836,0.00047732,14]
[377191414,1754278252303,-151.0,0.00047732,14]
[377191415,1754278252313,-151.0,0.00047732,14]
[377191416,1754278252323,-151.0,0.00047732,14]
[377191417,1754278252333,-226.969151,0.00047732,14]
[377191418,1754278252343,-226.969151,0.00047732,14]
[377191419,1754278252353,-265.56698,0.00047759,14]
[377191420,1754278252363,-265.56698,0.00047759,14]
[377191421,1754278252372,-231.561432,0.00047759,14]
[377191422,1754278252382,-151.0,0.00047759,14]
[377191423,1754278252392,-151.0,0.00047759,14]
[377191424,1754278252402,-151.0,0.00047759,14]
[377191425,1754278252412,-298.26089446,0.00047768,2]
[377191426,1754278252422,-447.3913417,0.00047768,2]
[377191427,1754278252432,-457.2201239,0.00047821,2]
[377191428,1754278252442,-1000.0,0.00047839,2]
[377191429,1754278252452,-1094.8994,0.00047839,2]
[377191430,1754278252462,-1000.0,0.00047839,2]
[377191431,1754278252472,-1000.0,0.00047839,2]
[377191432,1754278252481,-1000.0,0.00047839,2]
[377191433,1754278252492,-1000.0,0.00047839,2]
[377191434,1754278252503,-1000.0,0.00047839,2]
[377191435,1754278252512,-1000.0,0.00047839,2]
[377191436,1754278252522,-1000.0,0.00047839,2]
[377191437,1754278252531,-1000.0,0.00047839,2]
[377191438,1754278252541,-1000.0,0.00047839,2]
[377191439,1754278252550,-1000.0,0.00047839,2]
[377191440,1754278252560,-1000.0,0.00047839,2]
[377191441,1754278252570,-1000.0,0.00047839,2]
[377191442,1754278252579,-1000.0,0.00047839,2]
[377191443,1754278252589,-1000.0,0.00047839,2]
[377191444,1754278252599,-1000.0,0.00047839,2]
[377191445,1754278252608,-1000.0,0.00047839,2]
[377191446,1754278252617,-1000.0,0.00047839,2]
[377191447,1754278252627,-1000.0,0.00047839,2]
[377191448,1754278252636,-1126.3912,0.00047839,2]
[377191449,1754278252645,-251.973677,0.00047859,14]
[377191450,1754278252655,-251.973677,0.00047859,14]
[377191451,1754278252665,-335.69539561,0.0004786,30]
[377191452,1754278252674,-151.0,0.0004786,14]
[377191453,1754278252684,-161.047084,0.0004786,14]
[377191454,1754278252693,-161.047084,0.0004786,14]
[377191455,1754278252702,-151.0,0.0004786,14]
[377191456,1754278252712,-156.612544,0.0004786,14]
[377191457,1754278252722,-759.368077,0.0004786,14]
[377191458,1754278252733,-759.368077,0.0004786,14]
[377191459,1754278252743,-212.283583,0.0004786,14]
[377191460,1754278252752,-212.283583,0.0004786,14]
[377191461,1754278252761,-151.0,0.0004786,14]
[377191462,1754278252770,-226.82,0.000479,30]
[377191463,1754278252779,-2610.81153051,0.000479,120]
[377191464,1754278252789,-515.0,0.00047919,28]
[377191465,1754278252800,-500.0,0.00047945,120]
[377191466,1754278252809,-500.0,0.00047945,120]
[377191467,1754278252823,-500.0,0.00047945,120]
[377191468,1754278252833,-500.0,0.00047945,120]
[377191469,1754278252843,-500.0,0.00047945,120]
[377191470,1754278253226,-500.0,0.00047945,120]
[377191471,1754278253290,-500.0,0.00047945,120]
[377191472,1754278253299,-500.0,0.00047945,120]
[377191473,1754278253309,-500.0,0.00047945,120]
[377191474,1754278253318,-500.0,0.00047945,120]
[377191475,1754278253329,-500.0,0.00047945,120]
[377191476,1754278253338,-500.0,0.00047945,120]
[377191477,1754278253348,-500.0,0.00047945,120]
[377191478,1754278253357,-500.0,0.00047945,120]
[377191479,1754278253366,-500.0,0.00047945,120]
[377191480,1754278253376,-500.0,0.00047945,120]
[377191481,1754278253385,-500.0,0.00047945,120]
[377191482,1754278253399,-500.0,0.00047945,120]
[377191483,1754278253409,-500.0,0.00047945,120]
[377191484,1754278253419,-222.00415134,0.00047945,120]
[377191485,1754278253429,-188.71103143,0.0004796,15]
[377191486,1754278253439,-500.0,0.0004799,120]
[377191487,1754278253448,-321.09836,0.0004799,14]
[377191488,1754278253458,-151.0,0.0004799,14]
[377191489,1754278253469,-2007.6,0.00048,120]
[377191490,1754278253480,-566.87036337,0.00048,120]
[377191491,1754278253490,-157.134854,0.00048,14]
[377191492,1754278253500,-157.134854,0.00048,14]
[377191493,1754278253509,-151.0,0.00048,14]
[377191494,1754278253519,-151.0,0.00048,14]
[377191495,1754278253529,-267.396373,0.00048008,14]
[377191496,1754278253539,-151.0,0.00048008,14]
[377191497,1754278253549,-226.969151,0.00048008,14]
[377191498,1754278253558,-226.969151,0.00048008,14]
[377191499,1754278253568,-190.01721762,0.00048041,7]
[377191500,1754278253578,-150.0,0.00048131,7]
[377191501,1754278253589,-151.0,0.00048141,14]
[377191502,1754278253598,-150.0,0.0004816,7]
[377191503,1754278253608,-21014.3546,0.000482,120]
[377191504,1754278253618,-151.0,0.000482,14]
[377191505,1754278253629,-151.0,0.000482,14]
[377191506,1754278253638,-151.0,0.000482,14]
[377191507,1754278253649,-223.056698,0.000482,14]
[377191508,1754278253659,-151.0,0.000482,14]
[377191509,1754278253669,-263.231326,0.000482,14]
[377191510,1754278253679,-151.0,0.000482,14]
[377191511,1754278253689,-2201.3,0.000482,14]
[377191512,1754278253699,-300.0,0.00048202,120]
[377191513,1754278253709,-265.56698,0.00048217,14]
[377191514,1754278253719,-265.56698,0.00048217,14]
[377191515,1754278253729,-231.561432,0.00048217,14]
[377191516,1754278253739,-231.561432,0.00048217,14]
[377191517,1754278253749,-288.13411558,0.00048217,14]
[377191518,1754278253759,-197.583181,0.00048217,14]
[377191519,1754278253768,-197.583181,0.00048217,14]
[377191520,1754278253778,-186.242691,0.00048217,14]
[377191521,1754278253787,-186.242691,0.00048217,14]
[377191522,1754278253798,-461.975391,0.00048217,14]
[377191523,1754278253808,-461.975391,0.00048217,14]
[377191524,1754278253818,-151.0,0.00048217,14]
[377191525,1754278253827,-166.601767,0.00048217,14]
[377191526,1754278253841,-151.0,0.00048217,14]
[377191527,1754278253851,-151.0,0.00048217,14]
[377191528,1754278253860,-151.0,0.00048217,14]
[377191529,1754278253870,-151.0,0.00048217,14]
[377191530,1754278253880,-161.047084,0.00048217,14]
[377191531,1754278253890,-161.047084,0.00048217,14]
[377191532,1754278253906,-151.0,0.00048217,14]
[377191533,1754278253916,-759.368077,0.00048217,14]
[377191534,1754278253926,-759.368077,0.00048217,14]
[377191535,1754278253936,-212.283583,0.00048217,14]
[377191536,1754278253947,-212.283583,0.00048217,14]
[377191537,1754278253957,-151.0,0.00048217,14]
[377191538,1754278253967,-150.0,0.00048223,7]
[377191539,1754278253978,-150.0,0.00048242,7]
[377191540,1754278253988,-150.0,0.00048252,7]
[377191541,1754278253998,-150.0,0.00048336,7]
[377191542,1754278254008,-999.0,0.0004837,120]
[377191543,1754278254018,-197.583181,0.00048371,14]
[377191544,1754278254029,-197.583181,0.00048371,14]
[377191545,1754278254039,-186.242691,0.00048371,14]
[377191546,1754278254050,-186.242691,0.00048371,14]
[377191547,1754278254062,-461.975391,0.00048371,14]
[377191548,1754278254072,-461.975391,0.00048371,14]
[377191549,1754278254082,-151.0,0.00048371,14]
[377191550,1754278254092,-151.0,0.00048371,14]
[377191551,1754278254102,-151.0,0.00048371,14]
[377191552,1754278254112,-151.0,0.00048371,14]
[377191553,1754278254123,-192.382182,0.00048371,14]
[377191554,1754278254133,-251.973677,0.00048371,14]
[377191555,1754278254143,-251.973677,0.00048371,14]
[377191556,1754278254152,-157.134854,0.00048371,14]
[377191557,1754278254162,-157.134854,0.00048371,14]
[377191558,1754278254172,-151.0,0.00048371,14]
[377191559,1754278254181,-177.848423,0.00048371,14]
[377191560,1754278254191,-1000.0,0.000484,14]
[377191561,1754278254201,-273.60093565,0.00048402,30]
[377191562,1754278254211,-150.0,0.00048414,7]
[377191563,1754278254220,-500.0,0.00048439,30]
[377191564,1754278254230,-265.56698,0.00048471,14]
[377191565,1754278254240,-265.56698,0.00048471,14]
[377191566,1754278254250,-231.561432,0.00048471,14]
[377191567,1754278254260,-321.09836,0.00048471,14]
[377191568,1754278254269,-231.561432,0.00048471,14]
[377191569,1754278254280,-151.0,0.00048471,14]
[377191570,1754278254290,-151.0,0.00048471,14]
[377191571,1754278254300,-151.0,0.00048471,14]
[377191572,1754278254310,-151.0,0.00048471,14]
[377191573,1754278254319,-212.73956,0.00048471,14]
[377191574,1754278254329,-151.0,0.00048471,14]
[377191575,1754278254339,-263.231326,0.00048471,14]
[377191576,1754278254348,-263.231326,0.00048471,14]
[377191577,1754278254357,-151.0,0.00048471,14]
[377191578,1754278254367,-226.969151,0.00048471,14]
[377191579,1754278254377,-226.969151,0.00048471,14]
[377191580,1754278254386,-300.0,0.00048481,7]
[377191581,1754278254396,-151.0,0.00048485,14]
[377191582,1754278254405,-225.618632,0.00048485,14]
[377191583,1754278254415,-151.0,0.00048485,14]
[377191584,1754278254425,-151.0,0.00048485,14]
[377191585,1754278254435,-151.0,0.00048485,14]
[377191586,1754278254445,-157.134854,0.00048485,14]
[377191587,1754278254454,-157.134854,0.00048485,14]
[377191588,1754278254463,-151.0,0.00048485,14]